Cogmind - Beta 11 X6 @@@ ROGUE MODE // 2021.07.20 @ 14:10:27 Player: Salamander Result: Destroyed by B-75 Beast with Heavy Plasma Cannon Performance ------------- Evolutions (2) 1000 Regions Visited (5) 1000 Robots Destroyed (35) 175 Value Destroyed (1154) 1154 Prototype IDs (0) 0 Alien Tech Used (0) 0 Bonus (200) 200 TOTAL SCORE: 3529 Bonus ------- Entered Garrisons 200 Cogmind --------- Core Integrity 0/550 Matter 300/300 Energy 100/100 System Corruption 0% Temperature Cool (12) Movement Core (50) Location -8/Garrison Parts ------- > --- POWER (1) -------- (None) > --- PROPULSION (2) --- (None) > --- UTILITY (6) ------ Heat Sink Targeting Computer > --- WEAPON (2) ------- (None) > --- INVENTORY (5) ---- Improved Ion Engine High-capacity Storage Unit High-capacity Storage Unit Huge Storage Unit Peak State ------------ > --- POWER ------------ Light Ion Engine > --- PROPULSION ------- Compact Wheel Armored Wheel > --- UTILITY ---------- Heat Sink Improved Heat Sink High-capacity Storage Unit Targeting Computer Light Armor Plating Hardened Light Armor Plating > --- WEAPON ----------- Light Assault Rifle Heavy Assault Rifle > --- INVENTORY -------- Light Nuclear Core Light Treads Light Treads Compact Wheel Compact Wheel High-capacity Storage Unit Huge Storage Unit Medium Laser Particle Gun [Rating: 17] Favorites ----------- Power Light Ion Engine Engine Light Ion Engine Power Core Light Nuclear Core Propulsion Compact Wheel Treads Light Treads Wheel Compact Wheel Utility High-capacity Storage Unit Device Heat Sink Storage High-capacity Storage Unit Processor Targeting Computer Protection Light Armor Plating Weapon Assault Rifle Energy Gun Medium Laser Ballistic Gun Assault Rifle Build | -11 -10 -9 -9 -8 -8 ------- Run | Scr Mat Mat Min Mat Gar Slots Evolved 4 | . . 2 . 2 . Power . | . . . . . . Propulsion . | . . . . . . Utility 4 | . . 2 . 2 . Weapon . | . . . . . . Parts Attached 39 | 7 3 6 2 8 13 Power 5 | 1 . 1 . 1 2 Engine 3 | 1 . 1 . 1 . Core 2 | . . . . . 2 Reactor . | . . . . . . Propulsion 8 | 2 . 1 1 . 4 Treads 2 | . . . . . 2 Leg . | . . . . . . Wheel 6 | 2 . 1 1 . 2 Hover . | . . . . . . Flight . | . . . . . . Utility 14 | 1 2 4 1 4 2 Device 4 | . . 1 . 2 1 Storage 2 | 1 1 . . . . Processor 1 | . . . 1 . . Hackware . | . . . . . . Protection 7 | . 1 3 . 2 1 Artifact . | . . . . . . Weapon 12 | 3 1 . . 3 5 Energy Gun 6 | 1 1 . . 1 3 Energy Cannon . | . . . . . . Ballistic Gun 6 | 2 . . . 2 2 Ballistic Cannon . | . . . . . . Launcher . | . . . . . . Special Weapon . | . . . . . . Impact Weapon . | . . . . . . Slashing Weapon . | . . . . . . Piercing Weapon . | . . . . . . Special Melee Weapon . | . . . . . . Unidentified Prototypes . | . . . . . . Parts Lost 31 | . 2 2 1 6 20 Power 5 | . 1 . . 1 3 Propulsion 6 | . . 1 . . 5 Utility 9 | . . 1 1 2 5 Weapon 11 | . 1 . . 3 7 Highest Loss Streak 6 | . 1 2 1 6 6 Average Slot Usage (%) 90 | . 95 97 99 88 80 Engine 8 | . 13 11 11 9 1 Core 1 | . . . . . 5 Treads 1 | . . . . . 3 Wheel 20 | . 28 20 22 18 12 Device 8 | . . 11 3 8 17 Storage 11 | . 14 11 11 9 8 Processor 4 | . . . 6 9 9 Protection 12 | . 10 21 22 19 6 Energy Gun 4 | . 1 11 11 5 2 Ballistic Gun 16 | . 26 11 11 9 12 Naked Turns . | . . . . . . Heaviest Build 58 | 13 52 56 56 58 57 Greatest Support 40 | 26 26 32 32 28 40 Greatest Overweight (x) 3 | . 1 3 1 2 3 Average Overweight (x) 1 | . . 1 1 1 1 Largest Inventory Capacity 20 | 8 20 20 20 20 20 Average Capacity 19 | 6 19 20 20 20 19 Most Carried 13 | 4 13 12 11 11 10 Average Carried 8 | 2 9 10 10 9 6 Final Capacity 20 | 8 20 20 20 20 5 Final Carried 12 | 4 12 11 11 9 4 Class Distribution -------------------- 74% | Mutant 25% | Scavenger-Mutant Dominant Class ---------------- Mutant | -10/Materials Mutant | -9/Materials Mutant | -9/Mines Mutant | -8/Materials Scavenger-Mutant | -8/Garrison Resources | -11 -10 -9 -9 -8 -8 ----------- Run | Scr Mat Mat Min Mat Gar Matter Collected 808 | 197 236 54 47 115 159 Remotely . | . . . . . . Salvage Created 1434 | . 474 204 97 262 397 Parts 93 | . 28 12 5 21 27 Haulers Intercepted 1 | . 1 . . . . Recyclers Shooed . | . . . . . . Parts Field Recycled . | . . . . . . Retrieved Matter . | . . . . . . Parts Self-Destructed . | . . . . . . Prevented . | . . . . . . Kills | -11 -10 -9 -9 -8 -8 ------- Run | Scr Mat Mat Min Mat Gar Combat Hostiles Destroyed 32 | . 9 4 2 6 11 Guns 32 | . 9 4 2 6 11 Classes Destroyed 8 | . 4 2 1 . 1 Worker 1 | . 1 . . . . Hauler 1 | . 1 . . . . Watcher 1 | . . 1 . . . Swarmer 6 | . 1 . . 2 3 Grunt 21 | . 8 3 1 2 7 Brawler 1 | . . . 1 . . Duelist 1 | . . . . . 1 Sentry 3 | . . 1 . 2 . Best Kill Streak 6 | . 4 3 2 3 6 Combat Bots Only 6 | . 2 3 2 3 6 Max Kills in Single Turn 2 | . 2 1 1 1 1 Gunslinging . | . . . . . . Exploded . | . . . . . . Melee . | . . . . . . Uniques/NPCs Destroyed . | . . . . . . Combat | -11 -10 -9 -9 -8 -8 -------- Run | Scr Mat Mat Min Mat Gar Damage Taken 3075 | . 511 80 75 534 1875 Core 706 | . 144 11 . 31 520 Absorbed by Shields . | . . . . . . Core Remaining (%) 79 | 100 42 . 97 . . Volleys Fired 125 | . 38 8 7 24 48 Largest 2 | . 2 2 2 2 2 Hottest 130 | . 70 70 70 90 130 Shots Fired 230 | . 76 16 14 36 88 Gun 230 | . 76 16 14 36 88 Cannon . | . . . . . . Launcher . | . . . . . . Special . | . . . . . . Kinetic 155 | . 68 8 7 19 53 Thermal 70 | . 8 8 7 12 35 Explosive . | . . . . . . Electromagnetic 5 | . . . . 5 . Robot Hit Streak 14 | . 6 4 14 9 14 Robot Miss Streak 5 | . 5 2 1 3 2 Penetration Max . | . . . . . . Secondary Targets 7 | . 2 1 1 1 2 Max Gunslinging Chain 1 | . 1 1 1 1 1 Shots Hit Robots 159 | . 43 11 13 25 67 Core Hits 82 | . 25 9 4 11 33 Critical Kills . | . . . . . . Critical Parts Destroyed 1 | . . . . . 1 Critical Strikes 3 | . . 1 1 . 1 Burn 2 | . . 1 1 . . Destroy 1 | . . . . . 1 Melee Attacks . | . . . . . . Impact . | . . . . . . Slashing . | . . . . . . Piercing . | . . . . . . Sneak Attacks . | . . . . . . Combat Hostiles . | . . . . . . Follow-up Attacks . | . . . . . . Damage Inflicted 2159 | . 547 141 161 348 962 Guns 2131 | . 547 141 161 348 934 Cannons . | . . . . . . Explosions . | . . . . . . Melee . | . . . . . . Ramming 28 | . . . . . 28 Kinetic 1352 | . 508 61 84 221 478 Thermal 752 | . 39 80 77 100 456 Explosive . | . . . . . . Electromagnetic 27 | . . . . 27 . Impact . | . . . . . . Slashing . | . . . . . . Piercing . | . . . . . . Highest Corruption 4 | . . 2 4 . . Average Corruption 2 | . . 2 3 . . Corruption Purged . | . . . . . . Effects 2 | . . 1 1 . . Message Errors 1 | . . . 1 . . Energy Discharges 1 | . . 1 . . . Overload Shots . | . . . . . . Overflow Damage . | . . . . . . Projectiles . | . . . . . . Explosions . | . . . . . . Melee . | . . . . . . Knockbacks . | . . . . . . Impact . | . . . . . . Kinetic . | . . . . . . Secondary . | . . . . . . Self-Inflicted Damage 13 | . . . . . 13 Shots . | . . . . . . Rammed 7 | . . . . . 7 Targets Rammed 7 | . . . . . 7 Kicked . | . . . . . . Crushed . | . . . . . . Highest Temperature 211 | . 128 96 138 211 99 Average Temperature 56 | . 44 42 58 93 30 Received Heat Transfer 1131 | . 231 45 18 234 603 Siege Activations . | . . . . . . Robots Corrupted . | . . . . . . Combat Hostiles . | . . . . . . Parts Fried . | . . . . . . Impact Corruptions . | . . . . . . Robots Melted . | . . . . . . Combat Hostiles . | . . . . . . Parts Melted 4 | . 1 2 1 . . Heat Transferred 2109 | . 111 296 296 296 1110 Parts Sabotaged . | . . . . . . Parts Stolen . | . . . . . . Parts Stripped . | . . . . . . Power Chain Reactions . | . . . . . . Missiles Intercepted . | . . . . . . Alert | -11 -10 -9 -9 -8 -8 ------- Run | Scr Mat Mat Min Mat Gar Peak Influence 261 | . 207 129 89 164 261 Initial 106 | . . 49 49 34 106 Average 129 | . 122 82 75 109 198 Maximum Alert Level 1 | . 1 . . . 1 Low Security (%) 77 | 100 98 100 100 100 30 Level 1 22 | . 1 . . . 69 Level 2 . | . . . . . . Level 3 . | . . . . . . Level 4 . | . . . . . . Level 5 . | . . . . . . High Security . | . . . . . . Max Security . | . . . . . . Squads Dispatched 7 | . 4 1 . 2 . Investigation 4 | . 2 1 . 1 . Extermination . | . . . . . . Reinforcement 2 | . 2 . . . . Assault . | . . . . . . Garrison 1 | . . . . 1 . Intercept . | . . . . . . Construction Impeded . | . . . . . . Haulers Reinforced . | . . . . . . Active Scanning Responses . | . . . . . . Cargo Convoy Interrupts . | . . . . . . Stealth | -11 -10 -9 -9 -8 -8 --------- Run | Scr Mat Mat Min Mat Gar Distress Signals 2 | . . 1 . 1 . Communications Jammed . | . . . . . . Distress Signals . | . . . . . . Times Spotted 47 | . 16 5 2 9 15 Peak Tracking Total 7 | . 4 2 2 7 5 Tactical Retreats 5 | . 1 . . . 4 Traps | -11 -10 -9 -9 -8 -8 ------- Run | Scr Mat Mat Min Mat Gar Traps Triggered 5 | . 1 1 . . 3 Indirectly . | . . . . . . Trap Hack Attempts . | . . . . . . Triggered . | . . . . . . Disarmed . | . . . . . . Reprogrammed . | . . . . . . Reused . | . . . . . . Traps Extracted . | . . . . . . Installed . | . . . . . . Triggered . | . . . . . . Machines | -11 -10 -9 -9 -8 -8 ---------- Run | Scr Mat Mat Min Mat Gar Machines Disabled . | . . . . . . Max in Single Turn . | . . . . . . Machines Sabotaged . | . . . . . . Garrisons Compromised . | . . . . . . Overloaded Fab Kills . | . . . . . . Fab Network Shutdowns . | . . . . . . Hacking | -11 -10 -9 -9 -8 -8 --------- Run | Scr Mat Mat Min Mat Gar Machines Accessed 8 | . 3 2 . 3 . Terminals 7 | . 3 2 . 2 . Fabricators . | . . . . . . Repair Stations . | . . . . . . Recycling Units . | . . . . . . Scanalyzers . | . . . . . . Garrison Access 1 | . . . . 1 . Total Hacks 26 | . 9 7 . 10 . Successful 11 | . 4 3 . 4 . Failed 15 | . 5 4 . 6 . Catastrophic . | . . . . . . Database Lockouts . | . . . . . . Manual 22 | . 9 5 . 8 . Terminals 24 | . 9 7 . 8 . Fabricators . | . . . . . . Repair Stations . | . . . . . . Recycling Units . | . . . . . . Scanalyzers . | . . . . . . Garrison Access 2 | . . . . 2 . Terminal Hacks 2 | . 1 1 . . . Robot Analysis 2 | . 1 1 . . . Fabricator Hacks . | . . . . . . Repair Station Hacks . | . . . . . . Recycling Unit Hacks . | . . . . . . Scanalyzer . | . . . . . . Garrison Access Hacks 1 | . . . . 1 . Unlock Access 1 | . . . . 1 . Unauthorized Hacks 8 | . 3 2 . 3 . Terminals 8 | . 3 2 . 3 . Track 1 | . . 1 . . . Botnet 6 | . 3 1 . 2 . Operators 1 | . . . . 1 . Fabricators . | . . . . . . Repair Stations . | . . . . . . Recycling Units . | . . . . . . Scanalyzers . | . . . . . . Garrison Access . | . . . . . . Data Cores Recovered . | . . . . . . Used . | . . . . . . Hacking Detections 7 | . 3 2 . 2 . Full Trace Events 3 | . 1 1 . 1 . Feedback Events . | . . . . . . Feedback Blocked . | . . . . . . Robot Schematics Acquired . | . . . . . . Robots Built . | . . . . . . Matter . | . . . . . . Time . | . . . . . . Total Robot Build Rating . | . . . . . . Part Schematics Acquired . | . . . . . . Parts Built . | . . . . . . Matter . | . . . . . . Time . | . . . . . . Total Part Build Rating . | . . . . . . Parts Repaired . | . . . . . . Time . | . . . . . . Parts Recycled . | . . . . . . Recycled Matter . | . . . . . . Retrieved Matter . | . . . . . . Retrieved Components . | . . . . . . Parts Scanalyzed . | . . . . . . Part Schematics Acquired . | . . . . . . Parts Damaged . | . . . . . . Bothacking | -11 -10 -9 -9 -8 -8 ------------ Run | Scr Mat Mat Min Mat Gar Used RIF Installer . | . . . . . . Robots Hacked . | . . . . . . Non-combat . | . . . . . . Combat . | . . . . . . Robot Hacks Applied . | . . . . . . Relay Couplers Released . | . . . . . . Robots Rewired . | . . . . . . Allies Hacked . | . . . . . . Hacks Repelled . | . . . . . . Allies | -11 -10 -9 -9 -8 -8 -------- Run | Scr Mat Mat Min Mat Gar Total Allies . | . . . . . . Largest Group . | . . . . . . Highest-Rated Group . | . . . . . . Highest-Rated Ally . | . . . . . . Total Orders . | . . . . . . Ally Attacks . | . . . . . . Total Damage . | . . . . . . Kills . | . . . . . . Allies Corrupted . | . . . . . . Allies Melted . | . . . . . . Intel | -11 -10 -9 -9 -8 -8 ------- Run | Scr Mat Mat Min Mat Gar Robot Analysis Total 2 | . 1 1 . . . Derelict Logs Recovered . | . . . . . . Drone Launches . | . . . . . . Drone Recoveries . | . . . . . . Exploration | -11 -10 -9 -9 -8 -8 ------------- Run | Scr Mat Mat Min Mat Gar Turns Passed 1496 | 57 472 159 180 167 461 Spaces Moved 933 | 49 334 104 137 81 228 Core 8 | 2 . . . . 6 Treads 9 | . . . . . 9 Legs . | . . . . . . Wheels 916 | 47 334 104 137 81 213 Hover . | . . . . . . Flight . | . . . . . . Fastest Speed 50 | 50 90 115 110 110 50 Average Speed 112 | 86 104 121 112 116 122 Slowest Speed 260 | 90 105 145 115 125 260 Overloaded Moves . | . . . . . . Propulsion Burnouts . | . . . . . . Robots Hopped . | . . . . . . Cave-ins Triggered . | . . . . . . Exploration Rate (%) 27 | 4 62 15 25 11 47 Regions Visited 5 Branch Regions 1 Pre-discovered Areas . | . . . . . . Known Exits Taken 1 | . . . . 1 . Unknown Exits Taken 4 | 1 1 1 1 . . Scrap Searched 1 | . . . 1 . . Spaces Dug . | . . . . . . Terrain Destroyed . | . . . . . . Melee . | . . . . . . Projectile . | . . . . . . AOE . | . . . . . . Terrain Rammed . | . . . . . . Walls Destroyed . | . . . . . . Machines Disabled . | . . . . . . Actions | -11 -10 -9 -9 -8 -8 --------- Run | Scr Mat Mat Min Mat Gar Total 1156 | 59 386 120 147 116 328 Wait 6 | . 1 1 2 . 2 Move 929 | 48 333 103 136 81 228 Hop . | . . . . . . Pick Up 23 | 4 10 2 . 3 4 Fast Attach 14 | 6 1 1 . 3 3 Attach 22 | . 2 4 1 5 10 Detach 1 | . . . . . 1 Swap 3 | 1 . 1 1 . . Drop 2 | . 1 . . . 1 Fire 125 | . 38 8 7 24 48 Melee . | . . . . . . Ram 7 | . . . . . 7 Kick . | . . . . . . Crush . | . . . . . . Escape Stasis 24 | . . . . . 24 Rewire . | . . . . . . Trap . | . . . . . . Miscellaneous . | . . . . . . Route ------- -11/Scrapyard -10/Materials (discovered 2 exits: *Mat x2) -9/Materials -9/Mines -8/Materials -8/Garrison (discovered 2 exits: [*Mat x2]) History --------- Turn | Location | Event 7 | -11/Scrapyard | Discovered new exit (range 16) 58 | -11/Scrapyard | Entered Materials 305 | -10/Materials | Build established: Mutant 379 | -10/Materials | Discovered new exit (range 10) 512 | -10/Materials | Discovered new exit (range 15) 522 | -10/Materials | Core integrity fell below 50% 530 | -10/Materials | Entered another Materials area 530 | -9/Materials | Evolved 2 slots: Utility x2 677 | -9/Materials | Discovered new exit (range 12) 689 | -9/Materials | Entered Mines 730 | -9/Mines | Discovered new exit (range 10) 869 | -9/Mines | Entered Materials 869 | -8/Materials | Evolved 2 slots: Utility x2 947 | -8/Materials | Garrison activated, responded to threat 1006 | -8/Materials | Lost 6 parts (1p2u3w) 1036 | -8/Materials | Identified exit to Garrison 1036 | -8/Materials | Entered Garrison 1094 | -8/Garrison | Triggered checkpoint 1101 | -8/Garrison | Triggered checkpoint 1152 | -8/Garrison | Lost 3 parts (1p2u) 1183 | -8/Garrison | Discovered new exit (range 9) 1294 | -8/Garrison | Build established: Scavenger-Mutant 1300 | -8/Garrison | Lost 4 parts (2n2w) 1338 | -8/Garrison | Spotted B-75 Beast 1360 | -8/Garrison | Core integrity fell below 50% 1387 | -8/Garrison | Lost 6 parts (1p1n1u3w) 1456 | -8/Garrison | Discovered new exit (range 8) 1493 | -8/Garrison | Core integrity fell below 20% 1497 | -8/Garrison | Destroyed by B-75 Beast with Heavy Plasma Cannon Last Messages --------------- 01390_ Acquired 26 matter. 01392_ Acquired 2 matter. 01396_ G-47 Trooper destroyed. 01397_ Acquired 2 matter. 01409_ G-47 Trooper destroyed. 01411_ Acquired 8 matter. 01416_ Com. Wheel destroyed. 01419_ Lgt. Nuclear Core destroyed. 01456_ Lgt. Assault Rifle destroyed. 01456_ EXIT=FOUND 01476_ Lgt. Assault Rifle destroyed. 01479_ Core Shielding destroyed. 01479_ Knocked back. 01482_ Imp. Heat Sink destroyed. 01486_ Knocked back. 01486_ Com. Wheel destroyed. 01490_ Slammed into B-75 Beast. 01491_ Destabilizing: Core damaged (-27). 01492_ Knocked back. 01492_ Slammed into B-75 Beast. Map ----- +----------------------------------------------------+ | ?????????????????????????????????????????????????? | | ?????????????????????????????????????????????????? | | ?????????????????????????????????????????????????? | | ?????????????????????????????????????????????????? | | ?????????????????????????????????????????????????? | | ?????????????????????????????????????????????????? | | ?????????????????????????????????????????????????? | | ?????????????????????????????????????????????????? | | ?????????????????????????????????????????????????? | | ?????????????????????????????????????????????????? | | ?????????????????????????????????????????????????? | | ?????????????????????????????????????????????????? | | ?????????????????????????????????????????????????? | | ?????????????????????????????????????????????????? | | ????????????????????????????????#????????????????? | | ???????????######??????????????? ????????????????? | | ???????????# #??????????????? ????????????????? | | ???????????# < #??????????????? ????????????????? | | ???????????# #??????????????# #???????????????? | | ???????????### #??????????????# #???????????????? | | ?????????????# #??????????????# #???????????????? | | ?????????????# #??????????????# #???????????????? | | ?????????????# #??????????????# #???????????????? | | ?????????????# #??????????????# #???????????????? | | ?????????????# ################ #######?????????? | | ?????????????# %%@BB #??????#### | | ?????????????# %% % %%BB #??###?# | | ?????????????############## ######## #??# ?# | | ??????????????????????????# #??????# #??# #?# # | | ??????????????????????????# #??????# #??# #?# # | | ??????????????????????????# #??????# #??# #?# # | | ??????????????????????????# #??????# #??# #?# # | | ??????????????????????????# #??????# ####/### # | | ??????????????????????????# #??????# ## ==%## # | | ??????????????????????????# #?????## %"#*%% ## # | | ??????????????????????????# ####### | | ??????????????????????????# | | ??????????????????????????# * | | ??????????????????????????########## ## ==## | | ???????????????????????????????????#^ ^## [!%## | | ???????????????????????????????????" ^ *%= | | ???????????????????????????????????" | | ???????????????????????????????????" = * | | ???????????????????????????????????" | | ???????????????????????????????????# ## ## | | ?????????????????????????########### ## ## | | ?????????????????????????# ^ | | ?????????????????????????# = | | ?????????????????????????# ######## %% | | ?????????????????????????# #??????###### = ## # | +----------------------------------------------------+ Best States ------------- Heat Dissipation 55 Energy Generation 14 Energy Capacity 250 Matter Stores 300 Matter Capacity 300 Sight Range 16 Terrain Scan Density 10 Armor Coverage 450 Core Shielding 20 Evasion (%) 50 Targeting Accuracy 5 Recoil Reduction 2 Item Schematics ----------------- None Robot Schematics ------------------ None Fabricated ------------ Nothing Alien Tech Used ----------------- None Achievements -------------- None Challenges ------------ None Game ------ Seed LauncherGaussCarapace Manual? 0 Play Time 00:14:52 Cumulative 100.1 hours Start 2021.07.20 @ 13:53:38 End 2021.07.20 @ 14:10:27 Sessions 1 Manual Loads 0 Difficulty Rogue Special Mode None Game No. 84 Rogue 12 Adventurer 72 Explorer 0 Win Type - Total 4 Types 2/0/1/0/0/0/0/1/0 Lore% 66 Gallery% 69 Achievement% 66 Wizard Run 0 Options --------- ASCII 0 Keyboard 0 Movement Mouse Keybinds 0 Fullscreen 1 Font 12/Smallcaps Map View 83x54 Tactical HUD 1 Map Filters NONE Filters NONE Steam 1 RUN: fe0832f8-6c30-4f33-bc07-f123a82d771b